[Event "Late-Titled-Tuesday-Blitz-September-26-2023"]
[Site "Chess.com"]
[Date "2023.09.26"]
[Round "3"]
[White "JoakimVonAnd"]
[Black "Mykola-Bortnyk"]
[Result "1-0"]
[WhiteElo "2730"]
[BlackElo "2971"]
[TimeControl "180+1"]
[EndTime "14:26:58 PDT"]
[Termination "JoakimVonAnd won by resignation"]

1. d4 {[%clk 0:03:00.9]} 1... f5 {[%clk 0:02:58.4]} 2. Nf3 {[%clk 0:03:00.7]}
2... Nf6 {[%clk 0:02:58.5]} 3. Bf4 {[%clk 0:03:01.4]} 3... e6 {[%clk 0:02:53.1]}
4. e3 {[%clk 0:03:00.9]} 4... b6 {[%clk 0:02:53.5]} 5. Nbd2 {[%clk 0:02:54.8]}
5... Bb7 {[%clk 0:02:53.8]} 6. Bd3 {[%clk 0:02:55]} 6... Be7 {[%clk 0:02:51.7]}
7. h3 {[%clk 0:02:53.7]} 7... O-O {[%clk 0:02:50.4]} 8. O-O {[%clk 0:02:50.9]}
8... d6 {[%clk 0:02:48.4]} 9. c3 {[%clk 0:02:49.7]} 9... Qe8 {[%clk 0:02:37.8]}
10. Qc2 {[%clk 0:02:31.1]} 10... Nbd7 {[%clk 0:02:25.2]} 11. Bg3 {[%clk
0:02:23]} 11... Nh5 {[%clk 0:02:21.5]} 12. Bh2 {[%clk 0:02:22.9]} 12... Bd8
{[%clk 0:02:16.5]} 13. Rfe1 {[%clk 0:02:15.5]} 13... Kh8 {[%clk 0:02:11.6]} 14.
e4 {[%clk 0:02:05.5]} 14... f4 {[%clk 0:02:11.9]} 15. e5 {[%clk 0:02:05.9]}
15... dxe5 {[%clk 0:01:55.8]} 16. Bxh7 {[%clk 0:02:00.3]} 16... Rf6 {[%clk
0:01:44.1]} 17. dxe5 {[%clk 0:01:56.4]} 17... Rh6 {[%clk 0:01:43.1]} 18. Be4
{[%clk 0:01:56.6]} 18... Bxe4 {[%clk 0:01:39.8]} 19. Qxe4 {[%clk 0:01:57.5]}
19... Rc8 {[%clk 0:01:31]} 20. Nb3 {[%clk 0:01:44.3]} 20... Qf7 {[%clk
0:01:22.7]} 21. Rad1 {[%clk 0:01:42.7]} 21... Nf8 {[%clk 0:01:23.2]} 22. Nbd4
{[%clk 0:01:35]} 22... Be7 {[%clk 0:01:13.3]} 23. Qb7 {[%clk 0:01:26]} 23... Re8
{[%clk 0:01:06]} 24. Qxc7 {[%clk 0:01:23.6]} 24... Rg6 {[%clk 0:01:01.5]} 25.
Nc6 {[%clk 0:01:18.6]} 25... Ng3 {[%clk 0:00:56]} 26. Nxe7 {[%clk 0:01:09.2]}
26... Rxe7 {[%clk 0:00:54.6]} 27. Qc4 {[%clk 0:01:09.4]} 27... Rc7 {[%clk
0:00:48.8]} 28. Qd4 {[%clk 0:01:05.3]} 28... b5 {[%clk 0:00:43.9]} 29. fxg3
{[%clk 0:01:03.2]} 29... fxg3 {[%clk 0:00:41.2]} 30. Bxg3 {[%clk 0:01:03.6]}
30... b4 {[%clk 0:00:24.4]} 31. Qxb4 {[%clk 0:00:58.2]} 31... Kg8 {[%clk
0:00:21.4]} 32. Qf4 {[%clk 0:00:58]} 32... Qe8 {[%clk 0:00:18.4]} 33. Rd4 {[%clk
0:00:55.4]} 33... Rf7 {[%clk 0:00:18.7]} 34. Qh4 {[%clk 0:00:55]} 34... Rh6
{[%clk 0:00:17.2]} 35. Qe4 {[%clk 0:00:52.1]} 35... Rg6 {[%clk 0:00:16.4]} 36.
Bh4 {[%clk 0:00:51.2]} 36... Rf5 {[%clk 0:00:15.5]} 37. Red1 {[%clk 0:00:50.5]}
37... Qf7 {[%clk 0:00:15.4]} 38. R1d3 {[%clk 0:00:43.2]} 38... a5 {[%clk
0:00:14.8]} 39. Rd8 {[%clk 0:00:40.7]} 39... Rf4 {[%clk 0:00:14.6]} 40. Rxf8+
{[%clk 0:00:40.9]} 40... Qxf8 {[%clk 0:00:08.4]} 41. Qxg6 {[%clk 0:00:40.9]} 1-0

[Event "Late-Titled-Tuesday-Blitz-September-26-2023"]
[Site "Chess.com"]
[Date "2023.09.26"]
[Round "3"]
[White "Orest_Vovk"]
[Black "rikchessmx"]
[Result "1-0"]
[WhiteElo "2567"]
[BlackElo "2361"]
[TimeControl "180+1"]
[EndTime "14:26:58 PDT"]
[Termination "Orest_Vovk won by resignation"]

1. h4 {[%clk 0:03:00.9]} 1... d5 {[%clk 0:02:55.5]} 2. h5 {[%clk 0:03:01.1]}
2... h6 {[%clk 0:02:55.6]} 3. e4 {[%clk 0:03:00.8]} 3... dxe4 {[%clk 0:02:55.2]}
4. Nc3 {[%clk 0:03:01.4]} 4... Nf6 {[%clk 0:02:53.9]} 5. Qe2 {[%clk 0:02:59.2]}
5... Qd4 {[%clk 0:02:49.2]} 6. Rh4 {[%clk 0:02:58.2]} 6... Nc6 {[%clk 0:02:40]}
7. Nxe4 {[%clk 0:02:57.8]} 7... Nxe4 {[%clk 0:02:38.8]} 8. Rxe4 {[%clk
0:02:55.8]} 8... Qc5 {[%clk 0:02:34.9]} 9. Rc4 {[%clk 0:02:51.5]} 9... Qb6
{[%clk 0:02:28.4]} 10. Nf3 {[%clk 0:02:46.9]} 10... Be6 {[%clk 0:02:28.3]} 11.
Rh4 {[%clk 0:02:41.6]} 11... O-O-O {[%clk 0:02:23.7]} 12. Qb5 {[%clk 0:02:38.5]}
12... Qxb5 {[%clk 0:02:11.9]} 13. Bxb5 {[%clk 0:02:37.8]} 13... Bd5 {[%clk
0:02:06.9]} 14. Bxc6 {[%clk 0:02:34.6]} 14... Bxc6 {[%clk 0:02:05.2]} 15. Ne5
{[%clk 0:02:34.8]} 15... Be8 {[%clk 0:02:05.3]} 16. Rf4 {[%clk 0:02:30.6]} 16...
f6 {[%clk 0:02:04.9]} 17. Ng6 {[%clk 0:02:30.4]} 17... Bxg6 {[%clk 0:02:04.7]}
18. hxg6 {[%clk 0:02:31.3]} 18... e5 {[%clk 0:02:04.8]} 19. Rc4 {[%clk
0:02:28.5]} 19... a6 {[%clk 0:02:03.8]} 20. d3 {[%clk 0:02:24.8]} 20... b5
{[%clk 0:02:02.3]} 21. Rh4 {[%clk 0:02:23.4]} 21... Bc5 {[%clk 0:02:00.8]} 22.
a4 {[%clk 0:02:17.7]} 22... b4 {[%clk 0:01:59.9]} 23. Rc4 {[%clk 0:02:08.3]}
23... Bd6 {[%clk 0:01:57.1]} 24. a5 {[%clk 0:02:01.5]} 24... Kd7 {[%clk
0:01:55.8]} 25. Be3 {[%clk 0:01:59.5]} 25... Rb8 {[%clk 0:01:54]} 26. b3 {[%clk
0:01:56.6]} 26... f5 {[%clk 0:01:53.1]} 27. Ke2 {[%clk 0:01:43.1]} 27... Rb5
{[%clk 0:01:50.2]} 28. f4 {[%clk 0:01:24.7]} 28... Re8 {[%clk 0:01:41.2]} 29.
Kf3 {[%clk 0:01:20.5]} 29... Re6 {[%clk 0:01:36.9]} 30. fxe5 {[%clk 0:00:59.7]}
30... Bxe5 {[%clk 0:01:36.5]} 31. Bd4 {[%clk 0:00:59]} 31... Bxd4 {[%clk
0:01:20.8]} 32. Rxd4+ {[%clk 0:00:59.9]} 32... Ke7 {[%clk 0:01:20.7]} 33. Ra4
{[%clk 0:00:54.6]} 33... c5 {[%clk 0:01:17.3]} 34. Rd5 {[%clk 0:00:49.3]} 34...
Kf6 {[%clk 0:01:16.2]} 35. Kf4 {[%clk 0:00:34.2]} 35... Kxg6 {[%clk 0:01:16.2]}
36. Rxf5 {[%clk 0:00:34]} 36... Re2 {[%clk 0:01:16.3]} 37. Rd5 {[%clk
0:00:32.1]} 37... Rxc2 {[%clk 0:01:08.3]} 38. Rd6+ {[%clk 0:00:32.3]} 38... Kh7
{[%clk 0:01:08.3]} 39. Rxa6 {[%clk 0:00:33.2]} 39... Rc3 {[%clk 0:01:08.2]} 40.
Rb6 {[%clk 0:00:31]} 40... Rxb6 {[%clk 0:01:00.2]} 41. axb6 {[%clk 0:00:31.9]}
41... Rxd3 {[%clk 0:01:00.3]} 42. b7 {[%clk 0:00:32.3]} 42... Rd4+ {[%clk
0:00:54.7]} 43. Ke5 {[%clk 0:00:31.9]} 43... Rd8 {[%clk 0:00:51.2]} 44. Ra8
{[%clk 0:00:31.4]} 44... c4 {[%clk 0:00:51.7]} 45. Rxd8 {[%clk 0:00:29.6]} 45...
cxb3 {[%clk 0:00:52.6]} 46. b8=Q {[%clk 0:00:28.8]} 46... b2 {[%clk 0:00:52.4]}
47. Rh8+ {[%clk 0:00:26.8]} 47... Kg6 {[%clk 0:00:52]} 48. Qd6+ {[%clk
0:00:25.4]} 48... Kg5 {[%clk 0:00:51.9]} 49. Qd2+ {[%clk 0:00:24.7]} 49... Kg4
{[%clk 0:00:51.1]} 50. Qxb2 {[%clk 0:00:25.6]} 50... b3 {[%clk 0:00:51.2]} 51.
Qxb3 {[%clk 0:00:25.8]} 1-0

[Event "Late-Titled-Tuesday-Blitz-September-26-2023"]
[Site "Chess.com"]
[Date "2023.09.26"]
[Round "3"]
[White "Dacean99"]
[Black "falzehope0"]
[Result "1-0"]
[WhiteElo "2564"]
[BlackElo "2345"]
[TimeControl "180+1"]
[EndTime "14:27:01 PDT"]
[Termination "Dacean99 won on time"]

1. d4 {[%clk 0:02:59.8]} 1... e6 {[%clk 0:02:59.9]} 2. Nf3 {[%clk 0:02:59.7]}
2... d5 {[%clk 0:03:00.1]} 3. c4 {[%clk 0:02:59.9]} 3... c6 {[%clk 0:02:59.5]}
4. Nc3 {[%clk 0:02:57.9]} 4... f5 {[%clk 0:02:59.1]} 5. Bf4 {[%clk 0:02:54.4]}
5... Ne7 {[%clk 0:02:59]} 6. e3 {[%clk 0:02:52.6]} 6... Ng6 {[%clk 0:02:59.4]}
7. Bg3 {[%clk 0:02:51.8]} 7... Be7 {[%clk 0:02:59.3]} 8. Ne5 {[%clk 0:02:47.4]}
8... Nxe5 {[%clk 0:02:56]} 9. Bxe5 {[%clk 0:02:46.1]} 9... O-O {[%clk 0:02:56]}
10. Be2 {[%clk 0:02:42.6]} 10... Nd7 {[%clk 0:02:56.3]} 11. Bg3 {[%clk
0:02:40.3]} 11... Nf6 {[%clk 0:02:55.4]} 12. Qb3 {[%clk 0:02:35.8]} 12... Kh8
{[%clk 0:02:52.9]} 13. h4 {[%clk 0:02:29]} 13... b6 {[%clk 0:02:48.5]} 14. h5
{[%clk 0:02:26.6]} 14... h6 {[%clk 0:02:47.6]} 15. Rc1 {[%clk 0:02:20.1]} 15...
Bb7 {[%clk 0:02:45.1]} 16. cxd5 {[%clk 0:02:17.8]} 16... exd5 {[%clk 0:02:46]}
17. Be5 {[%clk 0:02:16.6]} 17... Nd7 {[%clk 0:02:25.9]} 18. Bf4 {[%clk
0:02:15.2]} 18... Bf6 {[%clk 0:02:24.6]} 19. Bf3 {[%clk 0:02:13.7]} 19... Re8
{[%clk 0:02:19.6]} 20. Qc2 {[%clk 0:02:10.4]} 20... Bxd4 {[%clk 0:02:03.3]} 21.
Qxf5 {[%clk 0:02:09]} 21... Nf6 {[%clk 0:01:56.1]} 22. Qg6 {[%clk 0:02:02.3]}
22... Qe7 {[%clk 0:01:45.2]} 23. O-O {[%clk 0:01:59.2]} 23... Be5 {[%clk
0:01:41.1]} 24. Ne2 {[%clk 0:01:53.6]} 24... c5 {[%clk 0:01:35.9]} 25. Bxe5
{[%clk 0:01:53.2]} 25... Qxe5 {[%clk 0:01:35.6]} 26. Nf4 {[%clk 0:01:53.8]}
26... Kg8 {[%clk 0:01:33.1]} 27. b4 {[%clk 0:01:49.3]} 27... Rac8 {[%clk
0:01:06.1]} 28. bxc5 {[%clk 0:01:47.7]} 28... bxc5 {[%clk 0:01:07]} 29. Rfd1
{[%clk 0:01:47]} 29... Red8 {[%clk 0:01:00.4]} 30. Rd2 {[%clk 0:01:41.4]} 30...
Ba8 {[%clk 0:00:50.8]} 31. Rdc2 {[%clk 0:01:39.1]} 31... c4 {[%clk 0:00:47.8]}
32. Rd1 {[%clk 0:01:38.4]} 32... d4 {[%clk 0:00:45.9]} 33. Bxa8 {[%clk
0:01:37.8]} 33... d3 {[%clk 0:00:40]} 34. Rcc1 {[%clk 0:01:29.5]} 34... Rxa8
{[%clk 0:00:31.7]} 35. Rxc4 {[%clk 0:01:27.5]} 35... d2 {[%clk 0:00:31.8]} 36.
Qc2 {[%clk 0:01:23.1]} 36... Rab8 {[%clk 0:00:13.9]} 37. Rc5 {[%clk 0:01:08.1]}
37... Qd6 {[%clk 0:00:08.9]} 38. Rc6 {[%clk 0:01:00.6]} 38... Qe5 {[%clk
0:00:08.1]} 39. Qc4+ {[%clk 0:00:59.3]} 39... Kh7 {[%clk 0:00:06.4]} 40. Re6
{[%clk 0:00:55.2]} 40... Qb2 {[%clk 0:00:05.4]} 41. Nd3 {[%clk 0:00:51.2]} 41...
Qa3 {[%clk 0:00:01.2]} 42. Rxf6 {[%clk 0:00:45.9]} 1-0

[Event "Late-Titled-Tuesday-Blitz-September-26-2023"]
[Site "Chess.com"]
[Date "2023.09.26"]
[Round "3"]
[White "schack_vit"]
[Black "aranibos"]
[Result "1-0"]
[WhiteElo "2461"]
[BlackElo "2290"]
[TimeControl "180+1"]
[EndTime "14:27:01 PDT"]
[Termination "schack_vit won on time"]

1. c4 {[%clk 0:02:57.4]} 1... e5 {[%clk 0:02:59]} 2. g3 {[%clk 0:02:55.8]} 2...
Nf6 {[%clk 0:02:58.3]} 3. Bg2 {[%clk 0:02:56.7]} 3... d5 {[%clk 0:02:57.9]} 4.
cxd5 {[%clk 0:02:57.6]} 4... Nxd5 {[%clk 0:02:57.7]} 5. Nf3 {[%clk 0:02:58.5]}
5... Nc6 {[%clk 0:02:50.1]} 6. O-O {[%clk 0:02:58.6]} 6... Be7 {[%clk
0:02:36.3]} 7. d4 {[%clk 0:02:57.7]} 7... e4 {[%clk 0:02:36.4]} 8. Ne5 {[%clk
0:02:53.5]} 8... Nf6 {[%clk 0:02:18.5]} 9. Nxc6 {[%clk 0:02:51.3]} 9... bxc6
{[%clk 0:02:18.8]} 10. Nc3 {[%clk 0:02:50]} 10... Bf5 {[%clk 0:02:18.6]} 11. Bg5
{[%clk 0:02:32.1]} 11... O-O {[%clk 0:02:01.6]} 12. e3 {[%clk 0:02:31.9]} 12...
Nd5 {[%clk 0:01:49.7]} 13. Bxe7 {[%clk 0:02:26.8]} 13... Qxe7 {[%clk 0:01:49.6]}
14. Rc1 {[%clk 0:02:26.7]} 14... Rab8 {[%clk 0:01:45.3]} 15. Na4 {[%clk
0:02:09]} 15... Qe6 {[%clk 0:01:24.3]} 16. a3 {[%clk 0:01:58.1]} 16... Bh3
{[%clk 0:01:21.6]} 17. Nc5 {[%clk 0:01:49.5]} 17... Qc8 {[%clk 0:01:20.5]} 18.
b4 {[%clk 0:01:42.6]} 18... Bxg2 {[%clk 0:01:17.6]} 19. Kxg2 {[%clk 0:01:42.8]}
19... Qf5 {[%clk 0:01:12.9]} 20. h3 {[%clk 0:01:34.6]} 20... h5 {[%clk
0:01:11.4]} 21. g4 {[%clk 0:01:22.1]} 21... hxg4 {[%clk 0:01:05.3]} 22. Qxg4
{[%clk 0:01:23]} 22... Qh7 {[%clk 0:00:48.4]} 23. Qxe4 {[%clk 0:01:00.4]} 23...
f5 {[%clk 0:00:41.6]} 24. Qe6+ {[%clk 0:01:00.5]} 24... Kh8 {[%clk 0:00:41.6]}
25. Qxc6 {[%clk 0:01:01]} 25... Nf6 {[%clk 0:00:31]} 26. Qf3 {[%clk 0:00:54.1]}
26... Rb6 {[%clk 0:00:26.8]} 27. Rg1 {[%clk 0:00:44.1]} 27... Nh5 {[%clk
0:00:20.5]} 28. Kf1 {[%clk 0:00:41]} 28... Rg6 {[%clk 0:00:19.9]} 29. Rxg6
{[%clk 0:00:40.3]} 29... Qxg6 {[%clk 0:00:20.3]} 30. Ke2 {[%clk 0:00:39.2]}
30... f4 {[%clk 0:00:20.3]} 31. e4 {[%clk 0:00:39]} 31... Rd8 {[%clk 0:00:11.1]}
32. d5 {[%clk 0:00:38]} 32... Re8 {[%clk 0:00:08.8]} 33. Ne6 {[%clk 0:00:36.6]}
33... Nf6 {[%clk 0:00:04.8]} 34. Rc4 {[%clk 0:00:35.1]} 34... Re7 {[%clk
0:00:01.4]} 35. Qxf4 {[%clk 0:00:34.6]} 1-0

[Event "Late-Titled-Tuesday-Blitz-September-26-2023"]
[Site "Chess.com"]
[Date "2023.09.26"]
[Round "3"]
[White "dzilleruelo"]
[Black "DonJuanEGenaro"]
[Result "1-0"]
[WhiteElo "2319"]
[BlackElo "1866"]
[TimeControl "180+1"]
[EndTime "14:27:02 PDT"]
[Termination "dzilleruelo won on time"]

1. e4 {[%clk 0:03:00.9]} 1... c5 {[%clk 0:02:59.8]} 2. Nf3 {[%clk 0:03:01.2]}
2... Nc6 {[%clk 0:02:59.9]} 3. Bb5 {[%clk 0:03:00.9]} 3... e6 {[%clk 0:02:59.3]}
4. Bxc6 {[%clk 0:02:59.7]} 4... bxc6 {[%clk 0:02:59.5]} 5. O-O {[%clk
0:03:00.6]} 5... d5 {[%clk 0:02:59.6]} 6. Qe2 {[%clk 0:02:59.3]} 6... Nf6 {[%clk
0:02:57.8]} 7. d3 {[%clk 0:02:59.6]} 7... Be7 {[%clk 0:02:57.2]} 8. b3 {[%clk
0:02:56.6]} 8... a5 {[%clk 0:02:54.8]} 9. a4 {[%clk 0:02:56.3]} 9... Ba6 {[%clk
0:02:54.6]} 10. Nbd2 {[%clk 0:02:52.6]} 10... O-O {[%clk 0:02:32.5]} 11. Re1
{[%clk 0:02:50.5]} 11... Qc7 {[%clk 0:02:04.5]} 12. Bb2 {[%clk 0:02:46.7]} 12...
d4 {[%clk 0:01:58.1]} 13. h3 {[%clk 0:02:36.9]} 13... e5 {[%clk 0:01:50]} 14.
Nh2 {[%clk 0:02:30.5]} 14... g6 {[%clk 0:01:39.3]} 15. Rf1 {[%clk 0:02:29.3]}
15... Nh5 {[%clk 0:01:38.8]} 16. g3 {[%clk 0:02:23.6]} 16... Qd7 {[%clk
0:01:34.6]} 17. Qg4 {[%clk 0:02:16.4]} 17... Qd6 {[%clk 0:01:12]} 18. Kg2 {[%clk
0:02:10.9]} 18... f5 {[%clk 0:01:10.8]} 19. exf5 {[%clk 0:02:06]} 19... Rxf5
{[%clk 0:01:10.6]} 20. Ne4 {[%clk 0:02:06.3]} 20... Qd5 {[%clk 0:01:08]} 21. Qe2
{[%clk 0:01:59.7]} 21... Raf8 {[%clk 0:01:04.9]} 22. Bc1 {[%clk 0:01:51]} 22...
Bc8 {[%clk 0:00:55.9]} 23. g4 {[%clk 0:01:44.6]} 23... Nf4+ {[%clk 0:00:53.1]}
24. Bxf4 {[%clk 0:01:44.9]} 24... Rxf4 {[%clk 0:00:52.8]} 25. f3 {[%clk
0:01:45.1]} 25... Qe6 {[%clk 0:00:36.2]} 26. Qd2 {[%clk 0:01:39.8]} 26... Bd8
{[%clk 0:00:33.8]} 27. Nxc5 {[%clk 0:01:37.6]} 27... Qe7 {[%clk 0:00:26.6]} 28.
Ne4 {[%clk 0:01:36.8]} 28... Qh4 {[%clk 0:00:26.2]} 29. Qf2 {[%clk 0:01:32.7]}
29... Qh6 {[%clk 0:00:23]} 30. Qd2 {[%clk 0:01:25.4]} 30... Be6 {[%clk
0:00:19.3]} 31. Rae1 {[%clk 0:01:12.8]} 31... Bd5 {[%clk 0:00:18.7]} 32. Re2
{[%clk 0:01:12.5]} 32... Bxe4 {[%clk 0:00:13.8]} 33. Rxe4 {[%clk 0:01:06.9]}
33... Rxg4+ {[%clk 0:00:13]} 34. Nxg4 {[%clk 0:00:58.8]} 34... Qxd2+ {[%clk
0:00:13.4]} 35. Rf2 {[%clk 0:00:59.6]} 35... Qd1 {[%clk 0:00:13.2]} 36. Rfe2
{[%clk 0:00:57.2]} 36... Bc7 {[%clk 0:00:07.1]} 37. h4 {[%clk 0:00:53.3]} 37...
h5 {[%clk 0:00:06.5]} 38. Nf2 {[%clk 0:00:51.8]} 38... Qc1 {[%clk 0:00:03.4]}
39. Nh3 {[%clk 0:00:51]} 39... Rf5 {[%clk 0:00:01.5]} 40. Rf2 {[%clk 0:00:46]}
1-0

[Event "Late-Titled-Tuesday-Blitz-September-26-2023"]
[Site "Chess.com"]
[Date "2023.09.26"]
[Round "3"]
[White "Haykoooo0o"]
[Black "bettercallcafu"]
[Result "0-1"]
[WhiteElo "2465"]
[BlackElo "2684"]
[TimeControl "180+1"]
[EndTime "14:27:03 PDT"]
[Termination "bettercallcafu won by resignation"]

1. d4 {[%clk 0:03:00.9]} 1... Nf6 {[%clk 0:03:00]} 2. Nf3 {[%clk 0:03:01.5]}
2... g6 {[%clk 0:03:00.5]} 3. Bf4 {[%clk 0:03:02]} 3... Bg7 {[%clk 0:03:01.1]}
4. h3 {[%clk 0:03:02.7]} 4... O-O {[%clk 0:03:01.6]} 5. e3 {[%clk 0:03:03.4]}
5... d6 {[%clk 0:03:02.5]} 6. c3 {[%clk 0:03:04]} 6... b6 {[%clk 0:03:03.1]} 7.
Be2 {[%clk 0:03:04.7]} 7... Bb7 {[%clk 0:03:03.6]} 8. O-O {[%clk 0:03:05.4]}
8... Nbd7 {[%clk 0:03:04]} 9. Bh2 {[%clk 0:03:06]} 9... Qe8 {[%clk 0:03:02.1]}
10. Nbd2 {[%clk 0:03:06.4]} 10... e5 {[%clk 0:03:02.4]} 11. Nc4 {[%clk 0:03:07]}
11... e4 {[%clk 0:02:57.6]} 12. Nfd2 {[%clk 0:03:06.9]} 12... Qe7 {[%clk
0:02:56.5]} 13. Na3 {[%clk 0:03:06.2]} 13... h5 {[%clk 0:02:53.8]} 14. Nb5
{[%clk 0:03:05.4]} 14... Rfc8 {[%clk 0:02:53.2]} 15. c4 {[%clk 0:03:05]} 15...
a6 {[%clk 0:02:49.4]} 16. Nc3 {[%clk 0:03:05.1]} 16... c5 {[%clk 0:02:49.3]} 17.
Nb3 {[%clk 0:03:01.5]} 17... Nf8 {[%clk 0:02:43.5]} 18. Na4 {[%clk 0:02:51.6]}
18... N6d7 {[%clk 0:02:29.9]} 19. dxc5 {[%clk 0:02:41.8]} 19... dxc5 {[%clk
0:02:29.4]} 20. Bd6 {[%clk 0:02:42.2]} 20... Qe6 {[%clk 0:02:25.2]} 21. Qd2
{[%clk 0:02:28.4]} 21... Nh7 {[%clk 0:02:24.7]} 22. Rfd1 {[%clk 0:02:26.4]}
22... Bc6 {[%clk 0:02:08.1]} 23. Nc3 {[%clk 0:02:13.8]} 23... Ne5 {[%clk
0:02:03.6]} 24. Bxe5 {[%clk 0:02:08.9]} 24... Bxe5 {[%clk 0:02:04.5]} 25. Nd5
{[%clk 0:02:08.9]} 25... Bxd5 {[%clk 0:02:04.8]} 26. cxd5 {[%clk 0:01:49.4]}
26... Qd6 {[%clk 0:02:04.6]} 27. Qc2 {[%clk 0:01:46.8]} 27... Nf6 {[%clk
0:02:02]} 28. Nd2 {[%clk 0:01:33.8]} 28... Re8 {[%clk 0:01:58.2]} 29. Nc4 {[%clk
0:01:23.2]} 29... Qc7 {[%clk 0:01:52.9]} 30. d6 {[%clk 0:01:14.6]} 30... Qc6
{[%clk 0:01:51.4]} 31. Nxe5 {[%clk 0:01:10.1]} 31... Rxe5 {[%clk 0:01:51.5]} 32.
Qc3 {[%clk 0:01:10.6]} 32... Re6 {[%clk 0:01:48.6]} 33. Bc4 {[%clk 0:00:37.9]}
33... Rxd6 {[%clk 0:01:48.5]} 34. Qe5 {[%clk 0:00:38.4]} 34... Rxd1+ {[%clk
0:01:39.5]} 35. Rxd1 {[%clk 0:00:37.9]} 35... Re8 {[%clk 0:01:40.2]} 36. Qg5
{[%clk 0:00:34.1]} 36... Kg7 {[%clk 0:01:36.9]} 37. Bxa6 {[%clk 0:00:25.9]}
37... b5 {[%clk 0:01:27.6]} 38. Rc1 {[%clk 0:00:09.5]} 38... Qxa6 {[%clk
0:01:26.2]} 39. Rxc5 {[%clk 0:00:10.2]} 39... b4 {[%clk 0:01:19.9]} 40. Ra5
{[%clk 0:00:09.8]} 40... Qc4 {[%clk 0:01:15.8]} 41. a3 {[%clk 0:00:08.5]} 41...
b3 {[%clk 0:01:14.7]} 42. Rb5 {[%clk 0:00:08.7]} 42... Qc1+ {[%clk 0:01:13.4]}
43. Kh2 {[%clk 0:00:08.5]} 43... Qxb2 {[%clk 0:01:14]} 44. Rb6 {[%clk
0:00:06.9]} 44... Qc3 {[%clk 0:01:10.3]} 45. Qf4 {[%clk 0:00:06]} 45... Nd5
{[%clk 0:00:59.2]} 46. Qxe4 {[%clk 0:00:05.2]} 46... Rxe4 {[%clk 0:00:58.6]} 0-1

[Event "Late-Titled-Tuesday-Blitz-September-26-2023"]
[Site "Chess.com"]
[Date "2023.09.26"]
[Round "3"]
[White "ArtemDyachuk"]
[Black "dcremisi"]
[Result "0-1"]
[WhiteElo "2684"]
[BlackElo "2546"]
[TimeControl "180+1"]
[EndTime "14:27:11 PDT"]
[Termination "dcremisi won on time"]

1. e4 {[%clk 0:03:00.9]} 1... e6 {[%clk 0:03:00.1]} 2. d4 {[%clk 0:03:00.4]}
2... d5 {[%clk 0:03:00.3]} 3. e5 {[%clk 0:03:00.7]} 3... c5 {[%clk 0:03:00.6]}
4. c3 {[%clk 0:03:00.6]} 4... Nc6 {[%clk 0:03:01]} 5. Nf3 {[%clk 0:03:00.5]}
5... Qb6 {[%clk 0:03:01.2]} 6. a3 {[%clk 0:03:00.3]} 6... Nh6 {[%clk 0:03:01.3]}
7. b4 {[%clk 0:02:59.8]} 7... cxd4 {[%clk 0:03:01.5]} 8. Bxh6 {[%clk 0:02:59.8]}
8... gxh6 {[%clk 0:03:01]} 9. cxd4 {[%clk 0:02:59.8]} 9... Bg7 {[%clk
0:03:01.3]} 10. Be2 {[%clk 0:02:49]} 10... O-O {[%clk 0:03:00.5]} 11. O-O {[%clk
0:02:48.2]} 11... f6 {[%clk 0:03:00.8]} 12. b5 {[%clk 0:02:47.9]} 12... Ne7
{[%clk 0:02:49.3]} 13. Re1 {[%clk 0:01:50.4]} 13... fxe5 {[%clk 0:02:47]} 14.
dxe5 {[%clk 0:01:49.1]} 14... Ng6 {[%clk 0:02:42.6]} 15. Bd3 {[%clk 0:01:38.6]}
15... Bd7 {[%clk 0:02:38.6]} 16. Nc3 {[%clk 0:01:32.8]} 16... Rac8 {[%clk
0:02:31.1]} 17. Rc1 {[%clk 0:01:17.3]} 17... Rf4 {[%clk 0:02:09.7]} 18. Bxg6
{[%clk 0:00:34.1]} 18... hxg6 {[%clk 0:02:08.9]} 19. Ne2 {[%clk 0:00:23.1]}
19... Rfc4 {[%clk 0:02:03.5]} 20. Rxc4 {[%clk 0:00:20.6]} 20... Rxc4 {[%clk
0:02:04.4]} 21. Qd3 {[%clk 0:00:20.6]} 21... g5 {[%clk 0:01:53.9]} 22. Qg6
{[%clk 0:00:14.4]} 22... Re4 {[%clk 0:01:47.2]} 23. Ng3 {[%clk 0:00:10.1]} 23...
Rxe1+ {[%clk 0:01:46.1]} 24. Nxe1 {[%clk 0:00:11]} 24... Qa5 {[%clk 0:01:32.6]}
25. Nf3 {[%clk 0:00:07.8]} 25... Qxa3 {[%clk 0:01:28.2]} 26. h4 {[%clk
0:00:07.3]} 26... Qf8 {[%clk 0:01:20.3]} 27. Nh5 {[%clk 0:00:06.6]} 27... Be8
{[%clk 0:01:14.7]} 28. Nf6+ {[%clk 0:00:06.3]} 28... Qxf6 {[%clk 0:01:11.7]} 29.
Qxe8+ {[%clk 0:00:06.2]} 29... Qf8 {[%clk 0:01:11.8]} 30. Qxe6+ {[%clk
0:00:06.4]} 30... Qf7 {[%clk 0:01:12.2]} 31. Qc8+ {[%clk 0:00:06.4]} 31... Qf8
{[%clk 0:01:06.5]} 32. Qe6+ {[%clk 0:00:05.5]} 32... Qf7 {[%clk 0:01:06.5]} 33.
Qc8+ {[%clk 0:00:06.1]} 33... Qf8 {[%clk 0:01:06.8]} 34. Qxb7 {[%clk 0:00:06.5]}
34... g4 {[%clk 0:01:07.1]} 35. Qxd5+ {[%clk 0:00:06.6]} 35... Qf7 {[%clk
0:01:05.5]} 36. Qa8+ {[%clk 0:00:06.3]} 36... Kh7 {[%clk 0:01:03.9]} 37. Qe4+
{[%clk 0:00:05.9]} 37... Qg6 {[%clk 0:01:04]} 38. Qxg6+ {[%clk 0:00:05.4]} 38...
Kxg6 {[%clk 0:01:04.9]} 39. Nh2 {[%clk 0:00:04.9]} 39... Kf5 {[%clk 0:01:01.6]}
40. f4 {[%clk 0:00:03.3]} 40... Kxf4 {[%clk 0:00:58.2]} 41. e6 {[%clk
0:00:03.7]} 41... Bf6 {[%clk 0:00:51]} 42. Kf2 {[%clk 0:00:03.5]} 42... g3+
{[%clk 0:00:50.9]} 43. Kg1 {[%clk 0:00:02.6]} 43... gxh2+ {[%clk 0:00:51.2]} 0-1